[Event "XVII Orsha-2019 Open"]
[Site "Orsha"]
[Date "2019.01.20"]
[Round "5"]
[White "Parshin, Maxim"]
[Black "Tihonov, Jurij"]
[Result "0-1"]
[ECO "D02"]
[WhiteElo "1956"]
[BlackElo "2399"]
[Annotator "ChessBase"]
[PlyCount "82"]
[EventDate "2019.01.18"]
[EventType "swiss"]
[EventCountry "BLR"]
[SourceTitle "playchess.com"]
[Source "ChessBase"]
[SourceQuality "1"]
[TimeControl "5400+30"]

1. d4 {[%emt 0:00:00]} d5 {[%emt 0:06:32]} 2. Nf3 {[%emt 0:00:00]} c6 {[%emt 0:00:30]} 3. Bg5 {[%emt 0:00:18]} Qb6 {[%emt 0:00:30]} 4. Qc1 {[%emt 0:00:30]} Bf5 {[%emt 0:00:30]} 5. Nbd2 {[%emt 0:00:30]} Nd7 {[%emt 0:00:30]} 6. e3 {[%emt 0:00:30]} Ngf6 {[%emt 0:00:30]} 7. Be2 {[%emt 0:00:30]} e6 {[%emt 0:00:30]} 8. O-O {[%emt 0:00:30]} h6 {[%emt 0:00:30]} 9. Bh4 {[%emt 0:00:30]} Be7 {[%emt 0:00:30]} 10. Ne5 {[%emt 0:00:30]} Nxe5 {[%emt 0:00:30]} 11. dxe5 {[%emt 0:00:30]} Nd7 {[%emt 0:00:30]} 12. Bg3 {[%emt 0:00:30]} h5 {[%emt 0:00:30]} 13. h3 {[%emt 0:00:30]} g5 {[%emt 0:00:30]} 14. Nf3 {[%emt 0:00:30]} h4 {[%emt 0:00:30]} 15. Bh2 {[%emt 0:00:30]} g4 {[%emt 0:00:30]} 16. Nd4 {[%emt 0:00:30]} gxh3 {[%emt 0:00:30]} 17. Nxf5 {[%emt 0:00:30]} hxg2 {[%emt 0:00:30]} 18. Ng7+ {[%emt 0:00:30]} Kf8 {[%emt 0:00:30]} 19. Nxe6+ {[%emt 0:00:30]} fxe6 {[%emt 0:00:30]} 20. Kxg2 {[%emt 0:00:30]} Kf7 {[%emt 0:00:30]} 21. f4 {[%emt 0:00:30]} Nc5 {[%emt 0:00:30]} 22. Bd3 {[%emt 0:00:30]} Rag8+ {[%emt 0:00:30]} 23. Kh1 {[%emt 0:00:30]} h3 {[%emt 0:00:30]} 24. f5 {[%emt 0:00:30]} Nxd3 {[%emt 0:00:30]} 25. cxd3 {[%emt 0:00:30]} Rg2 {[%emt 0:00:30]} 26. fxe6+ {[%emt 0:00:30]} Kxe6 {[%emt 0:00:30]} 27. e4 {[%emt 0:00:30]} Qxb2 {[%emt 0:00:30]} 28. Qf4 {[%emt 0:00:30]} Rxh2+ {[%emt 0:00:30]} 29. Qxh2 {[%emt 0:00:30]} Qxh2+ {[%emt 0:00:30]} 30. Kxh2 {[%emt 0:00:30]} dxe4 {[%emt 0:00:30]} 31. dxe4 {[%emt 0:00:30]} Kxe5 {[%emt 0:00:30]} 32. Rf7 {[%emt 0:00:30]} Ke6 {[%emt 0:00:30]} 33. Rff1 {[%emt 0:57:03]} Ke5 {[%emt 0:34:14]} 34. Rf7 {[%emt 0:00:30]} Ke6 {[%emt 0:00:56]} 35. Raf1 {[%emt 0:00:48]} c5 {[%emt 0:00:37]} 36. e5 {[%emt 0:01:50]} c4 {[%emt 0:00:34]} 37. R7f4 {[%emt 0:01:04]} Rc8 {[%emt 0:05:05]} 38. a4 {[%emt 0:05:52]} c3 {[%emt 0:00:45]} 39. Rc1 {[%emt 0:00:24]} Bg5 {[%emt 0:00:08]} 40. Kg3 {[%emt 0:02:31]} Bxf4+ {[%emt 0:00:29]} 41. Kxf4 {[%emt 0:00:07]} c2 {[%emt 0:00:32]} 0-1

[Event "XVII Orsha-2019 Open"]
[Site "Orsha"]
[Date "2019.01.20"]
[Round "5.11"]
[White "Galkin, Gleb"]
[Black "Stashis, Anna"]
[Result "1/2-1/2"]
[ECO "A85"]
[WhiteElo "2156"]
[BlackElo "1931"]
[PlyCount "64"]
[EventDate "2019.01.18"]
[EventType "swiss"]
[EventCountry "BLR"]
[TimeControl "5400+30"]

1. d4 d5 2. Nf3 c6 3. e3 e6 4. c4 Bd6 5. Nc3 f5 6. Bd3 Nf6 7. O-O O-O 8. b3 Ne4 9. Bb2 Nd7 10. Ne2 b6 11. Ne5 Bb7 12. cxd5 exd5 13. f3 Ng5 14. Qc2 g6 15. f4 Bxe5 16. dxe5 Ne6 17. g4 Ndc5 18. gxf5 Nxd3 19. Qxd3 Rxf5 20. Ng3 Rf7 21. f5 gxf5 22. Nxf5 Kh8 23. Nd6 Rg7+ 24. Kh1 Qd7 25. Rf6 Nc5 26. Qd4 Qh3 27. Nf7+ Kg8 28. Rg1 Ne4 29. Ng5 Rxg5 30. e6 Rxg1+ 31. Kxg1 Qg4+ 32. Kh1 Ng3+ 1/2-1/2

[Event "XVII Orsha-2019 Open"]
[Site "Orsha"]
[Date "2019.01.20"]
[Round "5.12"]
[White "Spizharny, Mikhail"]
[Black "Runets, Ivan"]
[Result "1/2-1/2"]
[ECO "B50"]
[WhiteElo "1923"]
[BlackElo "2118"]
[PlyCount "110"]
[EventDate "2019.01.18"]
[EventType "swiss"]
[EventCountry "BLR"]
[TimeControl "5400+30"]

1. e4 c5 2. Nf3 e6 3. b3 d6 4. Bb2 Nf6 5. Bd3 Nc6 6. O-O Be7 7. Re1 O-O 8. a3 b6 9. c3 Bb7 10. Bc2 Ne5 11. d4 cxd4 12. cxd4 Ng6 13. Nc3 Rc8 14. Rc1 a6 15. Qd2 Rc7 16. Bd3 Qb8 17. h3 Rfc8 18. Qe3 b5 19. Nd2 e5 20. d5 Nd7 21. b4 Nf4 22. g3 Nxd3 23. Qxd3 Bg5 24. Ne2 Bxd2 25. Qxd2 Nb6 26. Ba1 Nc4 27. Qd3 Rf8 28. g4 Bc8 29. Ng3 Bd7 30. Kh2 Qd8 31. Bc3 Qh4 32. Kg2 Rfc8 33. Bd2 Qf6 34. Be3 Qg6 35. f3 f6 36. Nf1 Qf7 37. Rc2 g6 38. Rec1 f5 39. Bb6 Rb7 40. Bg1 Rbc7 41. Ne3 fxe4 42. fxe4 Qf4 43. Nxc4 bxc4 44. Qe3 Qxe3 45. Bxe3 c3 46. Kf3 Bb5 47. Bb6 Rc4 48. Ke3 Ba4 49. Kd3 Bb5 50. Ke3 Kf7 51. g5 Ke7 52. h4 Ba4 53. Kd3 Bxc2+ 54. Rxc2 Ke8 55. Bc5 R4xc5 $11 1/2-1/2

[Event "XVII Orsha-2019 Open"]
[Site "Orsha"]
[Date "2019.01.20"]
[Round "5.13"]
[White "Bogacheva, Anna"]
[Black "Gabdrakipov, Ilshat"]
[Result "1/2-1/2"]
[ECO "C47"]
[WhiteElo "1955"]
[BlackElo "2098"]
[PlyCount "157"]
[EventDate "2019.01.18"]
[EventType "swiss"]
[EventCountry "BLR"]
[TimeControl "5400+30"]

1. e4 e5 2. Nc3 Nf6 3. g3 d5 4. exd5 Nxd5 5. Bg2 Be6 6. Nf3 Nc6 7. O-O Bd6 8. Re1 O-O 9. d4 exd4 10. Nxd4 Nxc3 11. bxc3 Nxd4 12. Qxd4 c5 13. Qe4 Rb8 14. a4 Qf6 15. Rb1 Bf5 16. Qf3 Rfe8 17. Be3 b6 18. Rbd1 Rbd8 19. a5 Be5 20. axb6 axb6 21. Rxd8 Rxd8 22. c4 Bxc2 23. Qb7 h6 24. Bd5 Bg6 25. Re2 Rb8 26. Qa7 Bh5 27. f3 Rd8 28. Rf2 Bg6 29. Kg2 Re8 30. Qd7 Qe7 31. Qxe7 Rxe7 32. Ra2 Bd4 33. Bf4 Bd3 34. Ra8+ Kh7 35. Rf8 Bg6 36. g4 Bf6 37. Rb8 Re2+ 38. Kg3 Rb2 39. Rb7 Bc3 40. h4 Be1+ 41. Kh3 Bd3 42. Be4+ Bxe4 43. fxe4 Rb3+ 44. Kg2 Bxh4 45. Rxf7 Kg6 46. Rb7 Rb4 47. Be5 Bf6 48. Bxf6 gxf6 49. Kf3 Rxc4 50. Rxb6 Kg5 51. Rc6 Rc3+ 52. Ke2 Rc2+ 53. Kd3 Rc1 54. Kd2 Rf1 55. Rxc5+ Kxg4 56. e5 fxe5 57. Rxe5 h5 58. Ke2 Rf8 59. Re4+ Kg3 60. Re3+ Kg2 61. Re4 Rg8 62. Rf4 Re8+ 63. Kd3 Kg3 64. Rf7 Re5 65. Rg7+ Kf4 66. Rh7 Kf3 67. Rf7+ Kg4 68. Rg7+ Kf5 69. Rh7 Kg6 70. Rh8 Kg7 71. Ra8 Re6 72. Ra4 Kg6 73. Re4 Ra6 74. Ke3 Ra2 75. Kf4 Ra3 76. Re6+ Kf7 77. Re3 Ra2 78. Kg5 Ra5+ 79. Kh4 1/2-1/2

[Event "XVII Orsha-2019 Open"]
[Site "Orsha"]
[Date "2019.01.20"]
[Round "5.14"]
[White "Vainerchuk, Barys"]
[Black "Kuleshov, Konstantin"]
[Result "1/2-1/2"]
[ECO "B33"]
[WhiteElo "1907"]
[BlackElo "2098"]
[PlyCount "70"]
[EventDate "2019.01.18"]
[EventType "swiss"]
[EventCountry "BLR"]
[TimeControl "5400+30"]

1. e4 c5 2. Nf3 Nc6 3. d4 cxd4 4. Nxd4 e5 5. Nb5 d6 6. N1c3 a6 7. Na3 b5 8. Nd5 Nf6 9. Bg5 Be7 10. Bxf6 Bxf6 11. c3 Bg5 12. Nc2 O-O 13. Bd3 Ne7 14. Nce3 Be6 15. Be2 g6 16. O-O f5 17. exf5 gxf5 18. a4 Bxe3 19. Nxe3 f4 20. Bg4 Qd7 21. Bxe6+ Qxe6 22. Nc2 Kh8 23. axb5 axb5 24. Qd3 Rad8 25. Ra6 Rg8 26. f3 Qc4 27. Rd1 Qc5+ 28. Kh1 Rxg2 29. Kxg2 Rg8+ 30. Kh1 Qf2 31. Qf1 Rg1+ 32. Qxg1 Qxf3+ 33. Qg2 Qxd1+ 34. Qg1 Qd5+ 35. Qg2 Qd1+ 1/2-1/2

[Event "XVII Orsha-2019 Open"]
[Site "Orsha"]
[Date "2019.01.20"]
[Round "5.15"]
[White "Ghevondyan, Arman"]
[Black "Khobotova, Olesia"]
[Result "1-0"]
[ECO "A49"]
[WhiteElo "1679"]
[BlackElo "1978"]
[PlyCount "115"]
[EventDate "2019.01.18"]
[EventType "swiss"]
[EventCountry "BLR"]
[TimeControl "5400+30"]

1. Nf3 Nf6 2. g3 g6 3. b3 Bg7 4. Bb2 O-O 5. c4 d6 6. d4 Nc6 7. Bg2 e5 8. dxe5 Ng4 9. O-O Ngxe5 10. Nc3 Re8 11. Qd2 Bg4 12. Nd5 a5 13. h3 Bf5 14. Nh4 Be6 15. f4 Nd7 16. Bxg7 Kxg7 17. Nc3 f5 18. e4 Qf6 19. Rad1 Nc5 20. exf5 gxf5 21. Rfe1 a4 22. Nd5 Bxd5 23. cxd5 Rxe1+ 24. Qxe1 Nd4 25. b4 Ne4 26. Kh2 Nc2 27. Qe2 Nxb4 28. Qc4 Na6 29. Nxf5+ Qxf5 30. Bxe4 Qf8 31. Bb1 Qe7 32. Qc3+ Kg8 33. Re1 Qg7 34. Qd2 Nc5 35. f5 Rf8 36. g4 h6 37. h4 Nd7 38. g5 Ne5 39. Qf4 hxg5 40. hxg5 Ng6 41. Qg4 Qh8+ 42. Kg2 Qh4 43. Re4 Qxg4+ 44. Rxg4 Ne7 45. Rf4 Nxd5 46. Rf3 b5 47. Be4 Nb6 48. f6 d5 49. Bf5 Kf7 50. Rh3 Rg8 51. Rh7+ Kf8 52. g6 Nc4 53. Rf7+ Ke8 54. Bd7+ Kd8 55. g7 Nd6 56. Rf8+ Kxd7 57. Rxg8 Ke6 58. Rf8 1-0

[Event "XVII Orsha-2019 Open"]
[Site "Orsha"]
[Date "2019.01.20"]
[Round "5.16"]
[White "Bury, Gleb M"]
[Black "Naumovich, Yaroslav"]
[Result "1/2-1/2"]
[ECO "C67"]
[WhiteElo "1961"]
[BlackElo "1915"]
[PlyCount "58"]
[EventDate "2019.01.18"]
[EventType "swiss"]
[EventCountry "BLR"]
[TimeControl "5400+30"]

1. e4 e5 2. Nf3 Nc6 3. Bb5 Nf6 4. O-O Nxe4 5. Re1 Nd6 6. Nxe5 Nxe5 7. Rxe5+ Be7 8. Bf1 O-O 9. Nc3 Bf6 10. Re1 Nf5 11. Nd5 c6 12. Nxf6+ Qxf6 13. Qf3 d5 14. c3 d4 15. c4 Bd7 16. d3 Rfe8 17. Bd2 Qd6 18. g3 Nh6 19. h3 f5 20. Qf4 Qxf4 21. Bxf4 Nf7 22. h4 c5 23. Bg2 Bc6 24. Bxc6 bxc6 25. Kf1 Kf8 26. f3 Re7 27. Rxe7 Kxe7 28. Re1+ Kd7 29. Kf2 Rf8 1/2-1/2

[Event "XVII Orsha-2019 Open"]
[Site "Orsha"]
[Date "2019.01.20"]
[Round "5.17"]
[White "Shkalov, Oleg"]
[Black "Poliakova, Varvara"]
[Result "1-0"]
[ECO "A84"]
[WhiteElo "2225"]
[BlackElo "1835"]
[PlyCount "51"]
[EventDate "2019.01.18"]
[EventType "swiss"]
[EventCountry "BLR"]
[TimeControl "5400+30"]

1. d4 f5 2. c4 Nf6 3. h4 g6 4. h5 Nxh5 5. Rxh5 gxh5 6. e4 d6 7. Qxh5+ Kd7 8. Nh3 Qe8 9. Qxf5+ e6 10. Qf4 Bg7 11. d5 Be5 12. Qg4 Qg6 13. Ng5 Ke7 14. f4 Bf6 15. dxe6 h6 16. Nc3 c6 17. c5 Bxc3+ 18. bxc3 hxg5 19. cxd6+ Kxd6 20. f5 Qh5 21. Qg3+ Ke7 22. Bxg5+ Ke8 23. Rd1 Bd7 24. Qe5 Qxg5 25. exd7+ Kf7 26. Bc4+ 1-0

[Event "XVII Orsha-2019 Open"]
[Site "Orsha"]
[Date "2019.01.20"]
[Round "5.18"]
[White "Zeliantsova, Kseniya"]
[Black "Egorenkov, Igor"]
[Result "0-1"]
[ECO "B31"]
[WhiteElo "1858"]
[BlackElo "2213"]
[PlyCount "110"]
[EventDate "2019.01.18"]
[EventType "swiss"]
[EventCountry "BLR"]
[TimeControl "5400+30"]

1. e4 c5 2. Nf3 Nc6 3. Bb5 g6 4. O-O Bg7 5. c3 Nf6 6. Re1 a6 7. Bxc6 dxc6 8. e5 Nd5 9. d4 cxd4 10. cxd4 Bf5 11. a3 O-O 12. Nc3 Nxc3 13. bxc3 Qd5 14. h3 c5 15. Be3 cxd4 16. cxd4 Rac8 17. Nh4 Bd7 18. f4 Rc3 19. Qd2 Rfc8 20. Rec1 Qb3 21. Rcb1 Qd5 22. Rc1 Rxc1+ 23. Rxc1 Rxc1+ 24. Qxc1 Qe4 25. Kh2 Bc6 26. Nf3 e6 27. Qc3 Bf8 28. Qb3 b5 29. Kg3 a5 30. Bd2 a4 31. Qc3 Kg7 32. Qc1 Bd5 33. f5 g5 34. f6+ Kg8 35. Bxg5 Qd3 36. Kh2 Bxf3 37. gxf3 Qxd4 38. Qe1 Bc5 39. Kg2 Kf8 40. Bc1 Ke8 41. Qf1 Kd8 42. f4 Kc7 43. Kf3 Kb6 44. Kg4 Qe4 45. Kg3 b4 46. Qd1 bxa3 47. Qd8+ Kb5 48. Qd7+ Kb4 49. Bd2+ Kb3 50. Qxf7 Qg6+ 51. Qxg6 hxg6 52. f5 gxf5 53. f7 a2 54. Be3 a1=Q 55. Bxc5 Qc3+ 0-1

[Event "XVII Orsha-2019 Open"]
[Site "Orsha"]
[Date "2019.01.20"]
[Round "5.19"]
[White "Paniagua Chnelik, Sebastian"]
[Black "Davidov, Alexey"]
[Result "1-0"]
[ECO "A85"]
[WhiteElo "2188"]
[BlackElo "1688"]
[PlyCount "59"]
[EventDate "2019.01.18"]
[EventType "swiss"]
[EventCountry "BLR"]
[TimeControl "5400+30"]

1. d4 f5 2. c4 Nf6 3. Nc3 g6 4. Bf4 d6 5. e3 Bg7 6. h4 Nh5 7. Bh2 e5 8. dxe5 dxe5 9. Qxd8+ Kxd8 10. O-O-O+ Nd7 11. Nf3 Re8 12. Be2 h6 13. c5 c6 14. Rd6 Bf6 15. Bc4 Ke7 16. Rhd1 Kf8 17. Rxd7 Bxd7 18. Rxd7 Re7 19. Rxe7 Kxe7 20. Nxe5 Bxe5 21. Bxe5 Nf6 22. f3 Nd7 23. Bd6+ Kf6 24. e4 fxe4 25. Nxe4+ Kg7 26. Be6 Nf8 27. Be5+ Kh7 28. Nf6+ Kg7 29. Bc4 Nh7 30. Nd7+ 1-0

[Event "XVII Orsha-2019 Open"]
[Site "Orsha"]
[Date "2019.01.20"]
[Round "5.20"]
[White "Grigoryan, Aram"]
[Black "Budnikov, Sergei"]
[Result "1-0"]
[ECO "E94"]
[WhiteElo "1786"]
[BlackElo "2152"]
[PlyCount "77"]
[EventDate "2019.01.18"]
[EventType "swiss"]
[EventCountry "BLR"]
[TimeControl "5400+30"]

1. d4 Nf6 2. c4 g6 3. Nc3 Bg7 4. e4 d6 5. Be2 O-O 6. Bg5 Na6 7. Nf3 c6 8. O-O e5 9. d5 h6 10. Bh4 c5 11. Ne1 Nc7 12. a3 Qe8 13. b4 b6 14. Nd3 Nh7 15. f3 f5 16. a4 g5 17. Bf2 f4 18. Nb5 Nxb5 19. axb5 Bd7 20. bxc5 bxc5 21. Ra6 Rf6 22. Qa1 Rb8 23. Rxa7 h5 24. Qa5 g4 25. Bh4 Rg6 26. Ra1 gxf3 27. Bxf3 Bg4 28. Ne1 Ng5 29. Bxg5 Rxg5 30. Ra8 Kh7 31. Rxb8 Qg6 32. Qd2 h4 33. Ra3 Qh5 34. Bxg4 Qxg4 35. Rf3 h3 36. b6 hxg2 37. b7 Rh5 38. Ra8 Qh4 39. h3 1-0

[Event "XVII Orsha-2019 Open"]
[Site "Orsha"]
[Date "2019.01.20"]
[Round "5.21"]
[White "Klachkou, Platon"]
[Black "Navumenka, Mikhei"]
[Result "0-1"]
[ECO "E43"]
[WhiteElo "1771"]
[BlackElo "2104"]
[PlyCount "54"]
[EventDate "2019.01.18"]
[EventType "swiss"]
[EventCountry "BLR"]
[TimeControl "5400+30"]

1. d4 Nf6 2. c4 e6 3. Nf3 b6 4. Nc3 Bb7 5. e3 Bb4 6. Bd3 c5 7. a3 Bxc3+ 8. bxc3 cxd4 9. cxd4 O-O 10. O-O d5 11. Ne5 dxc4 12. Bxc4 Nbd7 13. f4 Nxe5 14. fxe5 Ne4 15. Bb2 Qg5 16. Qe2 Rac8 17. Bd3 Nc3 18. Bxc3 Rxc3 19. Rf2 Rfc8 20. Raf1 R8c7 21. g3 Rxa3 22. Rf4 Rac3 23. Rg4 Qd8 24. Rgf4 h6 25. Qd2 Qd5 26. Be4 Qxe4 27. Rxe4 Bxe4 0-1

[Event "XVII Orsha-2019 Open"]
[Site "Orsha"]
[Date "2019.01.20"]
[Round "5.22"]
[White "Pogosian, Georgy"]
[Black "Prutskov, Aleksei"]
[Result "1-0"]
[ECO "E09"]
[WhiteElo "2090"]
[BlackElo "1824"]
[PlyCount "135"]
[EventDate "2019.01.18"]
[EventType "swiss"]
[EventCountry "BLR"]
[TimeControl "5400+30"]

1. d4 d5 2. Nf3 Nf6 3. c4 e6 4. g3 c6 5. Bg2 Be7 6. O-O O-O 7. Qc2 b6 8. Nbd2 Bb7 9. e4 Nbd7 10. e5 Ne8 11. cxd5 cxd5 12. Re1 Rc8 13. Qd1 Qc7 14. Nf1 Qc2 15. Qxc2 Rxc2 16. Ne3 Rc8 17. Bd2 Nc7 18. a3 a5 19. Bf1 Ba6 20. Rec1 Bxf1 21. Kxf1 Na8 22. Nd1 f6 23. exf6 gxf6 24. Nc3 Bd6 25. Nb5 Bb8 26. b4 e5 27. bxa5 e4 28. Nh4 Rxc1+ 29. Rxc1 bxa5 30. Bxa5 f5 31. Bb4 Rf6 32. Rc8+ Kf7 33. Rd8 Nab6 34. a4 f4 35. gxf4 Bxf4 36. a5 Ke6 37. axb6 Nxb6 38. Re8+ Kd7 39. Re7+ Kc8 40. Ng2 Bxh2 41. Rxh7 Bg3 42. Rh8+ Kb7 43. Rf8 Rxf8 44. Bxf8 Bb8 45. Bd6 Bxd6 46. Nxd6+ Kc6 47. Nf5 Kb5 48. Ke2 Kc6 49. Nf4 Kb5 50. Ne3 Kc6 51. Nfxd5 Nd7 52. Nc3 Nf6 53. Nf5 Kd7 54. Ng3 Ke6 55. Ngxe4 Ne8 56. Ke3 Ng7 57. Ng3 Ne8 58. d5+ Kd6 59. Kd4 Ng7 60. Nce4+ Kd7 61. Ke5 Kd8 62. f4 Ne8 63. Nc5 Kc7 64. Nge4 Kd8 65. Nf6 Nc7 66. Ne6+ Nxe6 67. Kxe6 Kc8 68. Ke7 1-0

[Event "XVII Orsha-2019 Open"]
[Site "Orsha"]
[Date "2019.01.20"]
[Round "5.23"]
[White "Dmitriev, Nikolay"]
[Black "Kuleba, Ivan"]
[Result "1/2-1/2"]
[ECO "A07"]
[WhiteElo "1923"]
[BlackElo "1617"]
[PlyCount "52"]
[EventDate "2019.01.18"]
[EventType "swiss"]
[EventCountry "BLR"]
[TimeControl "5400+30"]

1. Nf3 d5 2. g3 Nf6 3. Bg2 Bf5 4. O-O e6 5. d3 Bd6 6. Nfd2 c6 7. e4 Bg6 8. Nc3 O-O 9. f4 Bc5+ 10. Kh1 Bh5 11. Qe1 Nfd7 12. Nb3 Bb6 13. d4 a5 14. a4 Na6 15. Be3 Nb4 16. Qf2 Bc7 17. e5 Bg6 18. Rac1 Nb6 19. Nc5 Qc8 20. b3 Nd7 21. Nxd7 Qxd7 22. g4 f6 23. exf6 Rxf6 24. Qd2 Raf8 25. Ne2 h6 26. Rf3 Bd6 1/2-1/2

[Event "XVII Orsha-2019 Open"]
[Site "Orsha"]
[Date "2019.01.20"]
[Round "5.24"]
[White "Katkov, Mikhail"]
[Black "Karas, Andrei"]
[Result "0-1"]
[ECO "A36"]
[WhiteElo "1916"]
[BlackElo "1422"]
[PlyCount "100"]
[EventDate "2019.01.18"]
[EventType "swiss"]
[EventCountry "BLR"]
[TimeControl "5400+30"]

1. c4 c5 2. Nc3 g6 3. g3 Bg7 4. Bg2 Nc6 5. e4 d6 6. Nge2 e5 7. h3 Nge7 8. O-O O-O 9. a3 Rb8 10. Rb1 a6 11. b4 cxb4 12. axb4 b5 13. c5 dxc5 14. bxc5 Be6 15. f4 Qd7 16. Kh2 Bc4 17. f5 f6 18. fxg6 hxg6 19. Rf3 Rfd8 20. Ra1 a5 21. d3 Qa7 22. Nd5 Bxd5 23. exd5 Nxd5 24. d4 exd4 25. Nf4 Ne5 26. Nxd5 Nxf3+ 27. Qxf3 Qxc5 28. Nxf6+ Kh8 29. Qf4 g5 30. Qf3 g4 31. Nxg4 d3 32. Be3 Qf8 33. Rxa5 Qxf3 34. Bxf3 d2 35. Bd1 Bc3 36. Ra7 Ra8 37. Rb7 Rab8 38. Rc7 Rbc8 39. Re7 Re8 40. Rb7 Bg7 41. Rxb5 Rc3 42. Rb3 Rc1 43. Nf2 Rxe3 44. Rxe3 Bd4 45. Rd3 Bxf2 46. Rxd2 Be3 47. Rd3 Bh6 48. h4 Ra1 49. Kh3 Bf8 50. Rd7 Ra6 {Time White Zero} 0-1

[Event "XVII Orsha-2019 Open"]
[Site "Orsha"]
[Date "2019.01.20"]
[Round "5.26"]
[White "Viikmaa, Karmen"]
[Black "Staravoitava, Hanna"]
[Result "0-1"]
[ECO "A05"]
[WhiteElo "1706"]
[BlackElo "1864"]
[PlyCount "56"]
[EventDate "2019.01.18"]
[EventType "swiss"]
[EventCountry "BLR"]
[TimeControl "5400+30"]

1. Nf3 Nf6 2. g3 Nc6 3. Bg2 e5 4. d3 Bc5 5. O-O O-O 6. c3 d5 7. Nbd2 e4 8. Nd4 Bxd4 9. cxd4 exd3 10. e3 Bf5 11. a3 Na5 12. Re1 Qd6 13. Qa4 Qb6 14. h3 Rac8 15. Qd1 Rfe8 16. b4 Nc4 17. Qb3 Nxd2 18. Bxd2 c6 19. Bf1 Ne4 20. Red1 Qc7 21. g4 Nxf2 22. gxf5 Qg3+ 23. Bg2 Nxh3+ 24. Kh1 Nf2+ 25. Kg1 Re4 26. Rf1 Nh3+ 27. Kh1 Rh4 28. Rf3 Nf4+ 0-1

[Event "XVII Orsha-2019 Open"]
[Site "Orsha"]
[Date "2019.01.20"]
[Round "5.27"]
[White "Vifleemskaia, Svetlana"]
[Black "Dolgopyatov, Evgeniy"]
[Result "1-0"]
[ECO "D36"]
[WhiteElo "2030"]
[BlackElo "1661"]
[PlyCount "67"]
[EventDate "2019.01.18"]
[EventType "swiss"]
[EventCountry "BLR"]
[TimeControl "5400+30"]

1. d4 d5 2. c4 e6 3. Nc3 Nf6 4. cxd5 exd5 5. Bg5 Be7 6. e3 O-O 7. Bd3 c6 8. Qc2 Nbd7 9. Nge2 h6 10. Bh4 Ne8 11. Bg3 Nd6 12. O-O Nf6 13. f3 Re8 14. Bf2 Bf8 15. Kh1 g6 16. e4 dxe4 17. fxe4 Ng4 18. Bg1 Qg5 19. Rf3 h5 20. Raf1 Be6 21. b3 Rac8 22. Nf4 Bh6 23. h3 Kg7 24. Nxe6+ fxe6 25. g3 Rh8 26. hxg4 hxg4 27. R3f2 Qe3 28. Rh2 Qxg3 29. Ne2 Nxe4 30. Nxg3 Nxg3+ 31. Kg2 Nxf1 32. Bxf1 Rhf8 33. Qe4 Rf4 34. Qe5+ 1-0

[Event "XVII Orsha-2019 Open"]
[Site "Orsha"]
[Date "2019.01.20"]
[Round "5.28"]
[White "Gonov, Sergey"]
[Black "Nikolaev, Dmitry"]
[Result "0-1"]
[ECO "C13"]
[WhiteElo "1905"]
[BlackElo "1634"]
[PlyCount "106"]
[EventDate "2019.01.18"]
[EventType "swiss"]
[EventCountry "BLR"]
[TimeControl "5400+30"]

1. e4 e6 2. d4 d5 3. Nc3 dxe4 4. Nxe4 Nf6 5. Bg5 Be7 6. Bxf6 Bxf6 7. Nf3 O-O 8. c3 a6 9. Bd3 Nd7 10. Qe2 Be7 11. O-O-O b5 12. Ne5 Bb7 13. f4 f5 14. Nd2 Bd5 15. Rhg1 Nxe5 16. Qxe5 Bf6 17. Qe2 c5 18. dxc5 Bxa2 19. Nf3 Qc7 20. Ne5 Bxe5 21. Qxe5 Qxe5 22. fxe5 Bb3 23. Bc2 Bd5 24. b4 a5 25. g4 f4 26. Rd4 f3 27. Be4 axb4 28. Kb2 Ra2+ 29. Kb1 Rg2 30. Rf1 Bxe4+ 31. Rxe4 f2 32. Rd4 Rg1 33. Rdd1 Rxf1 34. Rxf1 bxc3 35. c6 h6 36. Kc2 b4 37. Kb3 Rc8 38. Rxf2 Rxc6 39. Rc2 Rb6 40. Rf2 Kh7 41. h4 h5 42. gxh5 Kh6 43. Rg2 Kxh5 44. Rxg7 Rc6 45. Rg1 c2 46. Rc1 Kxh4 47. Kxb4 Kg4 48. Kb3 Kf4 49. Rxc2 Rxc2 50. Kxc2 Kxe5 51. Kd1 Ke4 52. Ke1 Ke3 53. Kd1 e5 0-1

[Event "XVII Orsha-2019 Open"]
[Site "Orsha"]
[Date "2019.01.20"]
[Round "5.29"]
[White "Tsesler, Yakau"]
[Black "Slesareva, Miraslava"]
[Result "1-0"]
[ECO "E11"]
[WhiteElo "1895"]
[BlackElo "1626"]
[PlyCount "115"]
[EventDate "2019.01.18"]
[EventType "swiss"]
[EventCountry "BLR"]
[TimeControl "5400+30"]

1. d4 Nf6 2. c4 e6 3. Nf3 Bb4+ 4. Bd2 Bxd2+ 5. Nbxd2 d5 6. e3 O-O 7. Bd3 b6 8. O-O Bb7 9. Qc2 Nbd7 10. Rac1 c5 11. cxd5 exd5 12. dxc5 Nxc5 13. Be2 Rc8 14. Qb1 Nfe4 15. Rfd1 Qf6 16. Nb3 Nxb3 17. axb3 Nc5 18. b4 Ne6 19. h3 Qe7 20. b5 Rc5 21. Bd3 g6 22. Qa2 Ra8 23. Qa4 Qe8 24. Qb4 Qc8 25. Qd2 Qd8 26. Bf1 Rac8 27. b4 Rxc1 28. Rxc1 Rxc1 29. Qxc1 Qc7 30. Qd2 Kf8 31. Qa2 Ba8 32. Qa1 Kg8 33. Ne5 f5 34. Nf3 Qg7 35. Qc1 Qc7 36. Qd2 Qd6 37. Qc3 Qc7 38. Qf6 Qf7 39. Qe5 Nf8 40. Qb8 Qb7 41. Qe5 Qg7 42. Qd6 Qd7 43. Qf6 Qg7 44. Qd8 Bb7 45. Qb8 Qe7 46. Nd4 Kf7 47. Qxa7 Qc7 48. Nc6 Nd7 49. Qxb7 Qxb7 50. Nd8+ Ke7 51. Nxb7 Nf6 52. f3 Kd7 53. Kh2 Kc7 54. Na5 bxa5 55. bxa5 Nd7 56. Kg3 Nc5 57. Kf4 h6 58. Ke5 1-0

[Event "XVII Orsha-2019 Open"]
[Site "Orsha"]
[Date "2019.01.20"]
[Round "5.30"]
[White "Dolgopyatov, Andrey"]
[Black "Ivanov, Igor"]
[Result "1-0"]
[ECO "A48"]
[WhiteElo "1393"]
[BlackElo "2131"]
[PlyCount "71"]
[EventDate "2019.01.18"]
[EventType "swiss"]
[EventCountry "BLR"]
[TimeControl "5400+30"]

1. d4 Nf6 2. Nf3 g6 3. Bg5 Bg7 4. Nbd2 O-O 5. e4 d6 6. c3 b6 7. Bd3 Bb7 8. h3 c5 9. d5 Nbd7 10. O-O Qc7 11. Re1 a6 12. Nf1 b5 13. Qd2 Nb6 14. Ng3 Rfe8 15. h4 h5 16. Bh6 Bh8 17. Qg5 Nh7 18. Qd2 Nd7 19. Ng5 Ndf6 20. Qf4 Nxg5 21. Qxg5 Nh7 22. Qf4 e5 23. dxe6 Rxe6 24. Rad1 Rae8 25. Nxh5 gxh5 26. e5 Nf8 27. Qg5+ Ng6 28. f4 Bg7 29. Bxg7 Kxg7 30. f5 Rxe5 31. f6+ Kh7 32. Rxe5 Rxe5 33. Bf5 Qd8 34. Bxg6+ fxg6 35. Qxe5 d5 36. Qe7+ 1-0

[Event "XVII Orsha-2019 Open"]
[Site "Orsha"]
[Date "2019.01.20"]
[Round "5.31"]
[White "Sychou, Dzmitry"]
[Black "Sukalina, Alina"]
[Result "0-1"]
[ECO "A13"]
[WhiteElo "1847"]
[BlackElo "1546"]
[PlyCount "62"]
[EventDate "2019.01.18"]
[EventType "swiss"]
[EventCountry "BLR"]
[TimeControl "5400+30"]

1. c4 e6 2. g3 d5 3. Bg2 Nf6 4. Nf3 c6 5. b3 Bd6 6. Bb2 Nbd7 7. O-O b6 8. d3 Bb7 9. Nbd2 e5 10. cxd5 cxd5 11. d4 e4 12. Ne5 O-O 13. h3 Re8 14. Nxd7 Qxd7 15. e3 Ba6 16. Re1 Rac8 17. Kh2 Bd3 18. Bf1 Rc2 19. Bc1 Bb4 20. a3 Bc3 21. Rb1 Rc8 22. Kg2 Ra2 23. Bxd3 exd3 24. Rf1 Bxd2 25. Bxd2 Rcc2 26. Bb4 a5 27. Bxa5 bxa5 28. Qxd3 Ne4 29. Rbc1 Rxf2+ 30. Rxf2 Rxf2+ 31. Kg1 Qxh3 0-1

[Event "XVII Orsha-2019 Open"]
[Site "Orsha"]
[Date "2019.01.20"]
[Round "5.32"]
[White "Simonian, Anna"]
[Black "Volchkov, Ivan"]
[Result "0-1"]
[ECO "B34"]
[WhiteElo "1289"]
[BlackElo "1685"]
[PlyCount "72"]
[EventDate "2019.01.18"]
[EventType "swiss"]
[EventCountry "BLR"]
[TimeControl "5400+30"]

1. e4 c5 2. Nf3 Nc6 3. d4 cxd4 4. Nxd4 g6 5. Nc3 Bg7 6. Be3 Nf6 7. f3 O-O 8. Qd2 d5 9. exd5 Nxd5 10. Nxd5 Qxd5 11. Nxc6 Qxc6 12. O-O-O Be6 13. Kb1 a5 14. h4 h5 15. Be2 Rac8 16. g4 hxg4 17. fxg4 Qa4 18. a3 Bxg4 19. Bxg4 Qxg4 20. Rdg1 Qe4 21. h5 Rfd8 22. Qf2 Qe5 23. c3 Rxc3 24. hxg6 Qe4+ 25. Ka2 Qc4+ 26. Kb1 Qe4+ 27. Ka2 Qe6+ 28. Kb1 Qe4+ 29. Ka2 Qc4+ 30. Kb1 Qd3+ 31. Ka2 Rxa3+ 32. bxa3 Qc4+ 33. Kb1 Qb3+ 34. Kc1 Qxa3+ 35. Kb1 Qa1+ 36. Kc2 Qb2# 0-1